{"text_format":"3","workbook":"xlsx","n_sheets":6,"sheets":["Instruktioner","Uppföljning","Beräkningar","Kostnader","Klimatpåverkan","Omräkningsfaktorer"],"not_rendered":{"comments":3},"read":"whole","date_system":"1900"}

{"sheet":"Instruktioner","index":0,"n_rows":19,"n_cols":1,"rows_kept":19}
["Instruktion "]
["Så roligt att ni vill följa upp ert arbete för att bli mer resurssmarta! Det kräver lite engagemang och tid för att få till uppföljningen på ett bra sätt, men det är väl mödan värt! Läs gärna dokumentet Uppföljning i resurssmarta verksamheter som finns på resurssmartsamhalle.se"]
[]
["Uppföljning"]
["Här ser ni ett sammanfattning av resultatet av ert arbete. Det är de senaste mätvärdena som visas."]
[]
["Beräkningar"]
["Här läggs era mätvärden in."]
[]
["Kostnader"]
["Här läggs uppgifter om kostnader in."]
[]
["Klimatpåverkan"]
["Här kan ni se förändringen i klimatpåverkan omräknad till \"vardagsenheter\"."]
[]
["Omräkningsfaktorer"]
["Här hittar ni omräkningsfaktorer för klimatpåverkan. De används i fliken Beräkningar, om ni vill beräkna klimatpåverkan."]
[]
["Alla celler som innehåller en formel är låsta för att förhindra oavsiktliga ändringar. Lösenordet för att låsa upp dem är Resurssmart."]

{"sheet":"Uppföljning","index":1,"n_rows":21,"n_cols":7,"rows_kept":21}
["Resultat från senaste mätningen"]
[]
["GRÖNA SIFFROR = MINSKNING"]
["RÖDA SIFFROR = ÖKNING"]
[]
["Typ av avfall eller produkt ","Ändrad mängd","Enhet","Procentuell förändring ","Ändrad klimatpåverkan, kg CO2-ekv","Ändrad kostnad, kr","Period för mätning"]
[{"$f":"Beräkningar!A4","v":0},{"$f":"IF(Beräkningar!H30=\"Värde saknas\", IF(Beräkningar!G30=\"Värde saknas\", IF(Beräkningar!F30=\"Värde saknas\", IF(Beräkningar!E30=\"Värde saknas\", IF(Beräkningar!D30=\"Värde saknas\", IF(Beräkningar!C30=\"Värde saknas\", 0, Beräkningar!C30), Beräkningar!D30), Beräkningar!E30), Beräkningar!F30), Beräkningar!G30),Beräkningar!H30)","v":0},{"$f":"Beräkningar!B4","v":0},{"$f":"IF(Beräkningar!G63=\"Värde saknas\", IF(Beräkningar!F63=\"Värde saknas\", IF(Beräkningar!E63=\"Värde saknas\", IF(Beräkningar!D63=\"Värde saknas\", IF(Beräkningar!C63=\"Värde saknas\", IF(Beräkningar!B63=\"Värde saknas\", 0, Beräkningar!B63), Beräkningar!C63), Beräkningar!D63), Beräkningar!E63), Beräkningar!F63),Beräkningar!G63)","v":{"v":0,"d":"0%"}},{"$f":"IF(Beräkningar!G46=\"Värde saknas\", IF(Beräkningar!F46=\"Värde saknas\", IF(Beräkningar!E46=\"Värde saknas\", IF(Beräkningar!D46=\"Värde saknas\", IF(Beräkningar!C46=\"Värde saknas\", IF(Beräkningar!B46=\"Värde saknas\", 0, Beräkningar!B46), Beräkningar!C46), Beräkningar!D46), Beräkningar!E46), Beräkningar!F46),Beräkningar!G46)","v":0},{"$f":"IF(Kostnader!H24=\"Värde saknas\", IF(Kostnader!G24=\"Värde saknas\", IF(Kostnader!F24=\"Värde saknas\", IF(Kostnader!E24=\"Värde saknas\", IF(Kostnader!D24=\"Värde saknas\", IF(Kostnader!C24=\"Värde saknas\", 0, Kostnader!C24), Kostnader!D24), Kostnader!E24), Kostnader!F24), Kostnader!G24),Kostnader!H24)","v":0}]
[{"$f":"Beräkningar!A5","v":0},{"$f":"IF(Beräkningar!H31=\"Värde saknas\", IF(Beräkningar!G31=\"Värde saknas\", IF(Beräkningar!F31=\"Värde saknas\", IF(Beräkningar!E31=\"Värde saknas\", IF(Beräkningar!D31=\"Värde saknas\", IF(Beräkningar!C31=\"Värde saknas\", 0, Beräkningar!C31), Beräkningar!D31), Beräkningar!E31), Beräkningar!F31), Beräkningar!G31),Beräkningar!H31)","v":0},{"$f":"Beräkningar!B5","v":0},{"$f":"IF(Beräkningar!G64=\"Värde saknas\", IF(Beräkningar!F64=\"Värde saknas\", IF(Beräkningar!E64=\"Värde saknas\", IF(Beräkningar!D64=\"Värde saknas\", IF(Beräkningar!C64=\"Värde saknas\", IF(Beräkningar!B64=\"Värde saknas\", 0, Beräkningar!B64), Beräkningar!C64), Beräkningar!D64), Beräkningar!E64), Beräkningar!F64),Beräkningar!G64)","v":{"v":0,"d":"0%"}},{"$f":"IF(Beräkningar!G47=\"Värde saknas\", IF(Beräkningar!F47=\"Värde saknas\", IF(Beräkningar!E47=\"Värde saknas\", IF(Beräkningar!D47=\"Värde saknas\", IF(Beräkningar!C47=\"Värde saknas\", IF(Beräkningar!B47=\"Värde saknas\", 0, Beräkningar!B47), Beräkningar!C47), Beräkningar!D47), Beräkningar!E47), Beräkningar!F47),Beräkningar!G47)","v":0},{"$f":"IF(Kostnader!H25=\"Värde saknas\", IF(Kostnader!G25=\"Värde saknas\", IF(Kostnader!F25=\"Värde saknas\", IF(Kostnader!E25=\"Värde saknas\", IF(Kostnader!D25=\"Värde saknas\", IF(Kostnader!C25=\"Värde saknas\", 0, Kostnader!C25), Kostnader!D25), Kostnader!E25), Kostnader!F25), Kostnader!G25),Kostnader!H25)","v":0}]
[{"$f":"Beräkningar!A6","v":0},{"$f":"IF(Beräkningar!H32=\"Värde saknas\", IF(Beräkningar!G32=\"Värde saknas\", IF(Beräkningar!F32=\"Värde saknas\", IF(Beräkningar!E32=\"Värde saknas\", IF(Beräkningar!D32=\"Värde saknas\", IF(Beräkningar!C32=\"Värde saknas\", 0, Beräkningar!C32), Beräkningar!D32), Beräkningar!E32), Beräkningar!F32), Beräkningar!G32),Beräkningar!H32)","v":0},{"$f":"Beräkningar!B6","v":0},{"$f":"IF(Beräkningar!G65=\"Värde saknas\", IF(Beräkningar!F65=\"Värde saknas\", IF(Beräkningar!E65=\"Värde saknas\", IF(Beräkningar!D65=\"Värde saknas\", IF(Beräkningar!C65=\"Värde saknas\", IF(Beräkningar!B65=\"Värde saknas\", 0, Beräkningar!B65), Beräkningar!C65), Beräkningar!D65), Beräkningar!E65), Beräkningar!F65),Beräkningar!G65)","v":{"v":0,"d":"0%"}},{"$f":"IF(Beräkningar!G48=\"Värde saknas\", IF(Beräkningar!F48=\"Värde saknas\", IF(Beräkningar!E48=\"Värde saknas\", IF(Beräkningar!D48=\"Värde saknas\", IF(Beräkningar!C48=\"Värde saknas\", IF(Beräkningar!B48=\"Värde saknas\", 0, Beräkningar!B48), Beräkningar!C48), Beräkningar!D48), Beräkningar!E48), Beräkningar!F48),Beräkningar!G48)","v":0},{"$f":"IF(Kostnader!H26=\"Värde saknas\", IF(Kostnader!G26=\"Värde saknas\", IF(Kostnader!F26=\"Värde saknas\", IF(Kostnader!E26=\"Värde saknas\", IF(Kostnader!D26=\"Värde saknas\", IF(Kostnader!C26=\"Värde saknas\", 0, Kostnader!C26), Kostnader!D26), Kostnader!E26), Kostnader!F26), Kostnader!G26),Kostnader!H26)","v":0}]
[{"$f":"Beräkningar!A7","v":0},{"$f":"IF(Beräkningar!H33=\"Värde saknas\", IF(Beräkningar!G33=\"Värde saknas\", IF(Beräkningar!F33=\"Värde saknas\", IF(Beräkningar!E33=\"Värde saknas\", IF(Beräkningar!D33=\"Värde saknas\", IF(Beräkningar!C33=\"Värde saknas\", 0, Beräkningar!C33), Beräkningar!D33), Beräkningar!E33), Beräkningar!F33), Beräkningar!G33),Beräkningar!H33)","v":0},{"$f":"Beräkningar!B7","v":0},{"$f":"IF(Beräkningar!G66=\"Värde saknas\", IF(Beräkningar!F66=\"Värde saknas\", IF(Beräkningar!E66=\"Värde saknas\", IF(Beräkningar!D66=\"Värde saknas\", IF(Beräkningar!C66=\"Värde saknas\", IF(Beräkningar!B66=\"Värde saknas\", 0, Beräkningar!B66), Beräkningar!C66), Beräkningar!D66), Beräkningar!E66), Beräkningar!F66),Beräkningar!G66)","v":{"v":0,"d":"0%"}},{"$f":"IF(Beräkningar!G49=\"Värde saknas\", IF(Beräkningar!F49=\"Värde saknas\", IF(Beräkningar!E49=\"Värde saknas\", IF(Beräkningar!D49=\"Värde saknas\", IF(Beräkningar!C49=\"Värde saknas\", IF(Beräkningar!B49=\"Värde saknas\", 0, Beräkningar!B49), Beräkningar!C49), Beräkningar!D49), Beräkningar!E49), Beräkningar!F49),Beräkningar!G49)","v":0},{"$f":"IF(Kostnader!H27=\"Värde saknas\", IF(Kostnader!G27=\"Värde saknas\", IF(Kostnader!F27=\"Värde saknas\", IF(Kostnader!E27=\"Värde saknas\", IF(Kostnader!D27=\"Värde saknas\", IF(Kostnader!C27=\"Värde saknas\", 0, Kostnader!C27), Kostnader!D27), Kostnader!E27), Kostnader!F27), Kostnader!G27),Kostnader!H27)","v":0}]
[{"$f":"Beräkningar!A8","v":0},{"$f":"IF(Beräkningar!H34=\"Värde saknas\", IF(Beräkningar!G34=\"Värde saknas\", IF(Beräkningar!F34=\"Värde saknas\", IF(Beräkningar!E34=\"Värde saknas\", IF(Beräkningar!D34=\"Värde saknas\", IF(Beräkningar!C34=\"Värde saknas\", 0, Beräkningar!C34), Beräkningar!D34), Beräkningar!E34), Beräkningar!F34), Beräkningar!G34),Beräkningar!H34)","v":0},{"$f":"Beräkningar!B8","v":0},{"$f":"IF(Beräkningar!G67=\"Värde saknas\", IF(Beräkningar!F67=\"Värde saknas\", IF(Beräkningar!E67=\"Värde saknas\", IF(Beräkningar!D67=\"Värde saknas\", IF(Beräkningar!C67=\"Värde saknas\", IF(Beräkningar!B67=\"Värde saknas\", 0, Beräkningar!B67), Beräkningar!C67), Beräkningar!D67), Beräkningar!E67), Beräkningar!F67),Beräkningar!G67)","v":{"v":0,"d":"0%"}},{"$f":"IF(Beräkningar!G50=\"Värde saknas\", IF(Beräkningar!F50=\"Värde saknas\", IF(Beräkningar!E50=\"Värde saknas\", IF(Beräkningar!D50=\"Värde saknas\", IF(Beräkningar!C50=\"Värde saknas\", IF(Beräkningar!B50=\"Värde saknas\", 0, Beräkningar!B50), Beräkningar!C50), Beräkningar!D50), Beräkningar!E50), Beräkningar!F50),Beräkningar!G50)","v":0},{"$f":"IF(Kostnader!H28=\"Värde saknas\", IF(Kostnader!G28=\"Värde saknas\", IF(Kostnader!F28=\"Värde saknas\", IF(Kostnader!E28=\"Värde saknas\", IF(Kostnader!D28=\"Värde saknas\", IF(Kostnader!C28=\"Värde saknas\", 0, Kostnader!C28), Kostnader!D28), Kostnader!E28), Kostnader!F28), Kostnader!G28),Kostnader!H28)","v":0}]
[{"$f":"Beräkningar!A9","v":0},{"$f":"IF(Beräkningar!H35=\"Värde saknas\", IF(Beräkningar!G35=\"Värde saknas\", IF(Beräkningar!F35=\"Värde saknas\", IF(Beräkningar!E35=\"Värde saknas\", IF(Beräkningar!D35=\"Värde saknas\", IF(Beräkningar!C35=\"Värde saknas\", 0, Beräkningar!C35), Beräkningar!D35), Beräkningar!E35), Beräkningar!F35), Beräkningar!G35),Beräkningar!H35)","v":0},{"$f":"Beräkningar!B9","v":0},{"$f":"IF(Beräkningar!G68=\"Värde saknas\", IF(Beräkningar!F68=\"Värde saknas\", IF(Beräkningar!E68=\"Värde saknas\", IF(Beräkningar!D68=\"Värde saknas\", IF(Beräkningar!C68=\"Värde saknas\", IF(Beräkningar!B68=\"Värde saknas\", 0, Beräkningar!B68), Beräkningar!C68), Beräkningar!D68), Beräkningar!E68), Beräkningar!F68),Beräkningar!G68)","v":{"v":0,"d":"0%"}},{"$f":"IF(Beräkningar!G51=\"Värde saknas\", IF(Beräkningar!F51=\"Värde saknas\", IF(Beräkningar!E51=\"Värde saknas\", IF(Beräkningar!D51=\"Värde saknas\", IF(Beräkningar!C51=\"Värde saknas\", IF(Beräkningar!B51=\"Värde saknas\", 0, Beräkningar!B51), Beräkningar!C51), Beräkningar!D51), Beräkningar!E51), Beräkningar!F51),Beräkningar!G51)","v":0},{"$f":"IF(Kostnader!H29=\"Värde saknas\", IF(Kostnader!G29=\"Värde saknas\", IF(Kostnader!F29=\"Värde saknas\", IF(Kostnader!E29=\"Värde saknas\", IF(Kostnader!D29=\"Värde saknas\", IF(Kostnader!C29=\"Värde saknas\", 0, Kostnader!C29), Kostnader!D29), Kostnader!E29), Kostnader!F29), Kostnader!G29),Kostnader!H29)","v":0}]
[{"$f":"Beräkningar!A10","v":0},{"$f":"IF(Beräkningar!H36=\"Värde saknas\", IF(Beräkningar!G36=\"Värde saknas\", IF(Beräkningar!F36=\"Värde saknas\", IF(Beräkningar!E36=\"Värde saknas\", IF(Beräkningar!D36=\"Värde saknas\", IF(Beräkningar!C36=\"Värde saknas\", 0, Beräkningar!C36), Beräkningar!D36), Beräkningar!E36), Beräkningar!F36), Beräkningar!G36),Beräkningar!H36)","v":0},{"$f":"Beräkningar!B10","v":0},{"$f":"IF(Beräkningar!G69=\"Värde saknas\", IF(Beräkningar!F69=\"Värde saknas\", IF(Beräkningar!E69=\"Värde saknas\", IF(Beräkningar!D69=\"Värde saknas\", IF(Beräkningar!C69=\"Värde saknas\", IF(Beräkningar!B69=\"Värde saknas\", 0, Beräkningar!B69), Beräkningar!C69), Beräkningar!D69), Beräkningar!E69), Beräkningar!F69),Beräkningar!G69)","v":{"v":0,"d":"0%"}},{"$f":"IF(Beräkningar!G52=\"Värde saknas\", IF(Beräkningar!F52=\"Värde saknas\", IF(Beräkningar!E52=\"Värde saknas\", IF(Beräkningar!D52=\"Värde saknas\", IF(Beräkningar!C52=\"Värde saknas\", IF(Beräkningar!B52=\"Värde saknas\", 0, Beräkningar!B52), Beräkningar!C52), Beräkningar!D52), Beräkningar!E52), Beräkningar!F52),Beräkningar!G52)","v":0},{"$f":"IF(Kostnader!H30=\"Värde saknas\", IF(Kostnader!G30=\"Värde saknas\", IF(Kostnader!F30=\"Värde saknas\", IF(Kostnader!E30=\"Värde saknas\", IF(Kostnader!D30=\"Värde saknas\", IF(Kostnader!C30=\"Värde saknas\", 0, Kostnader!C30), Kostnader!D30), Kostnader!E30), Kostnader!F30), Kostnader!G30),Kostnader!H30)","v":0}]
[{"$f":"Beräkningar!A11","v":0},{"$f":"IF(Beräkningar!H37=\"Värde saknas\", IF(Beräkningar!G37=\"Värde saknas\", IF(Beräkningar!F37=\"Värde saknas\", IF(Beräkningar!E37=\"Värde saknas\", IF(Beräkningar!D37=\"Värde saknas\", IF(Beräkningar!C37=\"Värde saknas\", 0, Beräkningar!C37), Beräkningar!D37), Beräkningar!E37), Beräkningar!F37), Beräkningar!G37),Beräkningar!H37)","v":0},{"$f":"Beräkningar!B11","v":0},{"$f":"IF(Beräkningar!G70=\"Värde saknas\", IF(Beräkningar!F70=\"Värde saknas\", IF(Beräkningar!E70=\"Värde saknas\", IF(Beräkningar!D70=\"Värde saknas\", IF(Beräkningar!C70=\"Värde saknas\", IF(Beräkningar!B70=\"Värde saknas\", 0, Beräkningar!B70), Beräkningar!C70), Beräkningar!D70), Beräkningar!E70), Beräkningar!F70),Beräkningar!G70)","v":{"v":0,"d":"0%"}},{"$f":"IF(Beräkningar!G53=\"Värde saknas\", IF(Beräkningar!F53=\"Värde saknas\", IF(Beräkningar!E53=\"Värde saknas\", IF(Beräkningar!D53=\"Värde saknas\", IF(Beräkningar!C53=\"Värde saknas\", IF(Beräkningar!B53=\"Värde saknas\", 0, Beräkningar!B53), Beräkningar!C53), Beräkningar!D53), Beräkningar!E53), Beräkningar!F53),Beräkningar!G53)","v":0},{"$f":"IF(Kostnader!H31=\"Värde saknas\", IF(Kostnader!G31=\"Värde saknas\", IF(Kostnader!F31=\"Värde saknas\", IF(Kostnader!E31=\"Värde saknas\", IF(Kostnader!D31=\"Värde saknas\", IF(Kostnader!C31=\"Värde saknas\", 0, Kostnader!C31), Kostnader!D31), Kostnader!E31), Kostnader!F31), Kostnader!G31),Kostnader!H31)","v":0}]
[{"$f":"Beräkningar!A12","v":0},{"$f":"IF(Beräkningar!H38=\"Värde saknas\", IF(Beräkningar!G38=\"Värde saknas\", IF(Beräkningar!F38=\"Värde saknas\", IF(Beräkningar!E38=\"Värde saknas\", IF(Beräkningar!D38=\"Värde saknas\", IF(Beräkningar!C38=\"Värde saknas\", 0, Beräkningar!C38), Beräkningar!D38), Beräkningar!E38), Beräkningar!F38), Beräkningar!G38),Beräkningar!H38)","v":0},{"$f":"Beräkningar!B12","v":0},{"$f":"IF(Beräkningar!G71=\"Värde saknas\", IF(Beräkningar!F71=\"Värde saknas\", IF(Beräkningar!E71=\"Värde saknas\", IF(Beräkningar!D71=\"Värde saknas\", IF(Beräkningar!C71=\"Värde saknas\", IF(Beräkningar!B71=\"Värde saknas\", 0, Beräkningar!B71), Beräkningar!C71), Beräkningar!D71), Beräkningar!E71), Beräkningar!F71),Beräkningar!G71)","v":{"v":0,"d":"0%"}},{"$f":"IF(Beräkningar!G54=\"Värde saknas\", IF(Beräkningar!F54=\"Värde saknas\", IF(Beräkningar!E54=\"Värde saknas\", IF(Beräkningar!D54=\"Värde saknas\", IF(Beräkningar!C54=\"Värde saknas\", IF(Beräkningar!B54=\"Värde saknas\", 0, Beräkningar!B54), Beräkningar!C54), Beräkningar!D54), Beräkningar!E54), Beräkningar!F54),Beräkningar!G54)","v":0},{"$f":"IF(Kostnader!H32=\"Värde saknas\", IF(Kostnader!G32=\"Värde saknas\", IF(Kostnader!F32=\"Värde saknas\", IF(Kostnader!E32=\"Värde saknas\", IF(Kostnader!D32=\"Värde saknas\", IF(Kostnader!C32=\"Värde saknas\", 0, Kostnader!C32), Kostnader!D32), Kostnader!E32), Kostnader!F32), Kostnader!G32),Kostnader!H32)","v":0}]
[{"$f":"Beräkningar!A13","v":0},{"$f":"IF(Beräkningar!H39=\"Värde saknas\", IF(Beräkningar!G39=\"Värde saknas\", IF(Beräkningar!F39=\"Värde saknas\", IF(Beräkningar!E39=\"Värde saknas\", IF(Beräkningar!D39=\"Värde saknas\", IF(Beräkningar!C39=\"Värde saknas\", 0, Beräkningar!C39), Beräkningar!D39), Beräkningar!E39), Beräkningar!F39), Beräkningar!G39),Beräkningar!H39)","v":0},{"$f":"Beräkningar!B13","v":0},{"$f":"IF(Beräkningar!G72=\"Värde saknas\", IF(Beräkningar!F72=\"Värde saknas\", IF(Beräkningar!E72=\"Värde saknas\", IF(Beräkningar!D72=\"Värde saknas\", IF(Beräkningar!C72=\"Värde saknas\", IF(Beräkningar!B72=\"Värde saknas\", 0, Beräkningar!B72), Beräkningar!C72), Beräkningar!D72), Beräkningar!E72), Beräkningar!F72),Beräkningar!G72)","v":{"v":0,"d":"0%"}},{"$f":"IF(Beräkningar!G55=\"Värde saknas\", IF(Beräkningar!F55=\"Värde saknas\", IF(Beräkningar!E55=\"Värde saknas\", IF(Beräkningar!D55=\"Värde saknas\", IF(Beräkningar!C55=\"Värde saknas\", IF(Beräkningar!B55=\"Värde saknas\", 0, Beräkningar!B55), Beräkningar!C55), Beräkningar!D55), Beräkningar!E55), Beräkningar!F55),Beräkningar!G55)","v":0},{"$f":"IF(Kostnader!H33=\"Värde saknas\", IF(Kostnader!G33=\"Värde saknas\", IF(Kostnader!F33=\"Värde saknas\", IF(Kostnader!E33=\"Värde saknas\", IF(Kostnader!D33=\"Värde saknas\", IF(Kostnader!C33=\"Värde saknas\", 0, Kostnader!C33), Kostnader!D33), Kostnader!E33), Kostnader!F33), Kostnader!G33),Kostnader!H33)","v":0}]
[{"$f":"Beräkningar!A14","v":0},{"$f":"IF(Beräkningar!H40=\"Värde saknas\", IF(Beräkningar!G40=\"Värde saknas\", IF(Beräkningar!F40=\"Värde saknas\", IF(Beräkningar!E40=\"Värde saknas\", IF(Beräkningar!D40=\"Värde saknas\", IF(Beräkningar!C40=\"Värde saknas\", 0, Beräkningar!C40), Beräkningar!D40), Beräkningar!E40), Beräkningar!F40), Beräkningar!G40),Beräkningar!H40)","v":0},{"$f":"Beräkningar!B14","v":0},{"$f":"IF(Beräkningar!G73=\"Värde saknas\", IF(Beräkningar!F73=\"Värde saknas\", IF(Beräkningar!E73=\"Värde saknas\", IF(Beräkningar!D73=\"Värde saknas\", IF(Beräkningar!C73=\"Värde saknas\", IF(Beräkningar!B73=\"Värde saknas\", 0, Beräkningar!B73), Beräkningar!C73), Beräkningar!D73), Beräkningar!E73), Beräkningar!F73),Beräkningar!G73)","v":{"v":0,"d":"0%"}},{"$f":"IF(Beräkningar!G56=\"Värde saknas\", IF(Beräkningar!F56=\"Värde saknas\", IF(Beräkningar!E56=\"Värde saknas\", IF(Beräkningar!D56=\"Värde saknas\", IF(Beräkningar!C56=\"Värde saknas\", IF(Beräkningar!B56=\"Värde saknas\", 0, Beräkningar!B56), Beräkningar!C56), Beräkningar!D56), Beräkningar!E56), Beräkningar!F56),Beräkningar!G56)","v":0},{"$f":"IF(Kostnader!H34=\"Värde saknas\", IF(Kostnader!G34=\"Värde saknas\", IF(Kostnader!F34=\"Värde saknas\", IF(Kostnader!E34=\"Värde saknas\", IF(Kostnader!D34=\"Värde saknas\", IF(Kostnader!C34=\"Värde saknas\", 0, Kostnader!C34), Kostnader!D34), Kostnader!E34), Kostnader!F34), Kostnader!G34),Kostnader!H34)","v":0}]
[{"$f":"Beräkningar!A15","v":0},{"$f":"IF(Beräkningar!H41=\"Värde saknas\", IF(Beräkningar!G41=\"Värde saknas\", IF(Beräkningar!F41=\"Värde saknas\", IF(Beräkningar!E41=\"Värde saknas\", IF(Beräkningar!D41=\"Värde saknas\", IF(Beräkningar!C41=\"Värde saknas\", 0, Beräkningar!C41), Beräkningar!D41), Beräkningar!E41), Beräkningar!F41), Beräkningar!G41),Beräkningar!H41)","v":0},{"$f":"Beräkningar!B15","v":0},{"$f":"IF(Beräkningar!G74=\"Värde saknas\", IF(Beräkningar!F74=\"Värde saknas\", IF(Beräkningar!E74=\"Värde saknas\", IF(Beräkningar!D74=\"Värde saknas\", IF(Beräkningar!C74=\"Värde saknas\", IF(Beräkningar!B74=\"Värde saknas\", 0, Beräkningar!B74), Beräkningar!C74), Beräkningar!D74), Beräkningar!E74), Beräkningar!F74),Beräkningar!G74)","v":{"v":0,"d":"0%"}},{"$f":"IF(Beräkningar!G57=\"Värde saknas\", IF(Beräkningar!F57=\"Värde saknas\", IF(Beräkningar!E57=\"Värde saknas\", IF(Beräkningar!D57=\"Värde saknas\", IF(Beräkningar!C57=\"Värde saknas\", IF(Beräkningar!B57=\"Värde saknas\", 0, Beräkningar!B57), Beräkningar!C57), Beräkningar!D57), Beräkningar!E57), Beräkningar!F57),Beräkningar!G57)","v":0},{"$f":"IF(Kostnader!H35=\"Värde saknas\", IF(Kostnader!G35=\"Värde saknas\", IF(Kostnader!F35=\"Värde saknas\", IF(Kostnader!E35=\"Värde saknas\", IF(Kostnader!D35=\"Värde saknas\", IF(Kostnader!C35=\"Värde saknas\", 0, Kostnader!C35), Kostnader!D35), Kostnader!E35), Kostnader!F35), Kostnader!G35),Kostnader!H35)","v":0}]
["Summa",{"$nulls":3},{"$f":"SUBTOTAL(109,E7:E18)","v":0},{"$f":"SUBTOTAL(109,F7:F18)","v":0}]
[]
["Total förändrad klimatpåverkan motsvarar",{"$f":"IF(Klimatpåverkan!G5=0, IF(Klimatpåverkan!F5=0, IF(Klimatpåverkan!E5=0, IF(Klimatpåverkan!D5=0, IF(Klimatpåverkan!C5=0, IF(Klimatpåverkan!B5=0,  Klimatpåverkan!B5,0), Klimatpåverkan!C5), Klimatpåverkan!D5), Klimatpåverkan!E5), Klimatpåverkan!F5),Klimatpåverkan!G5)","v":0},"km körning med genomsnittlig nyproducerad bensinbil"]

{"sheet":"Beräkningar","index":2,"n_rows":74,"n_cols":16,"rows_kept":74,"merged":[[1,0,1,1]]}
[{"$nulls":15},"OBS! Endast för VA SYDs administratör"]
["Tabell 1, inmatning av siffror",{"$nulls":12},"OBS! Det är bara i Tabell 1 som ni som verksamhet fyller i siffror!"]
["Vad följer vi upp","Enhet vi mäter i","Utgångsvärde","Uppföljning 1","Uppföljning 2","Uppföljning 3","Uppföljning 4","Uppföljning 5","Uppföljning 6","Kg per enhet",null,"Värden skrivs in som ni hade mätt i ett år. Det innebär att:",null,"Klimatpåverkan per krona 2019","Klimatpåverkan kg CO2 per kg","Klimatpåverkan per enhet"]
[{"$nulls":9},1,null,"Om ni har mätt i en vecka, multiplicera med antal verksamhetsveckor per år",null,null,2,{"$f":"IF(O4>0,Tabell2[[#This Row],[Kg per enhet]]*O4,#REF!*N4)","v":2}]
[{"$nulls":11},"Om ni har mätt i en månad, multiplicera med antal verksamhetmånader per år",null,null,2,{"$f":"IF(O5>0,Tabell2[[#This Row],[Kg per enhet]]*O5,#REF!*N5)","v":0}]
[{"$nulls":14},2,{"$f":"IF(O6>0,Tabell2[[#This Row],[Kg per enhet]]*O6,#REF!*N6)","v":0}]
[{"$nulls":11},"Tips: Ange ovanför rubrikerna för Utgångsvärde och uppföljning när mätningen gjordes",null,null,2,{"$f":"IF(O7>0,Tabell2[[#This Row],[Kg per enhet]]*O7,#REF!*N7)","v":0}]
[{"$nulls":15},{"$f":"IF(O8>0,Tabell2[[#This Row],[Kg per enhet]]*O8,#REF!*N8)","v":{"$error":"#REF!"}}]
[{"$nulls":15},{"$f":"IF(O9>0,Tabell2[[#This Row],[Kg per enhet]]*O9,#REF!*N9)","v":{"$error":"#REF!"}}]
[{"$nulls":15},{"$f":"IF(O10>0,Tabell2[[#This Row],[Kg per enhet]]*O10,#REF!*N10)","v":{"$error":"#REF!"}}]
[{"$nulls":15},{"$f":"IF(O11>0,Tabell2[[#This Row],[Kg per enhet]]*O11,#REF!*N11)","v":{"$error":"#REF!"}}]
[{"$nulls":15},{"$f":"IF(O12>0,Tabell2[[#This Row],[Kg per enhet]]*O12,#REF!*N12)","v":{"$error":"#REF!"}}]
[{"$nulls":15},{"$f":"IF(O13>0,Tabell2[[#This Row],[Kg per enhet]]*O13,#REF!*N13)","v":{"$error":"#REF!"}}]
[{"$nulls":15},{"$f":"IF(O14>0,Tabell2[[#This Row],[Kg per enhet]]*O14,#REF!*N14)","v":{"$error":"#REF!"}}]
[{"$nulls":15},{"$f":"IF(O15>0,Tabell2[[#This Row],[Kg per enhet]]*O15,#REF!*N15)","v":{"$error":"#REF!"}}]
[]
["Antaganden och förutsättningar för beräkningar"]
{"$rows_empty":8}
["Resultat hämtas från nedanstående tabeller"]
[]
["Tabell 2, Minskad mängd avfall, per år"]
["Vad följer vi upp","Enhet vi mäter","Uppföljning 1","Uppföljning 2","Uppföljning 3","Uppföljning 4","Uppföljning 5","Uppföljning 6"]
[{"$f":"A4","v":0},null,{"$f":"IF(D4>0,(D4-$C$4),\"Värde saknas\")","v":"Värde saknas"},{"$f":"IF(E4>0,(E4-$C$4),\"Värde saknas\")","v":"Värde saknas"},"Värde saknas","Värde saknas","Värde saknas","Värde saknas",null,"Röda siffror = utgångsvärde saknas i tabell 1 ovan, eller så har avfallet ökat"]
[0,null,{"$f":"IF(D5>0,(D5-$C$5),\"Värde saknas\")","v":"Värde saknas"},{"$f":"IF(E5>0,(E5-$C$5),\"Värde saknas\")","v":"Värde saknas"},"Värde saknas","Värde saknas","Värde saknas","Värde saknas"]
[0,null,{"$f":"IF(D6>0,(D6-$C$6),\"Värde saknas\")","v":"Värde saknas"},{"$f":"IF(E6>0,(E6-$C$6),\"Värde saknas\")","v":"Värde saknas"},"Värde saknas","Värde saknas","Värde saknas","Värde saknas"]
[0,null,{"$f":"IF(D7>0,(D7-$C$7),\"Värde saknas\")","v":"Värde saknas"},{"$f":"IF(E7>0,(E7-$C$7),\"Värde saknas\")","v":"Värde saknas"},"Värde saknas","Värde saknas","Värde saknas","Värde saknas"]
[0,null,{"$f":"IF(D8>0,(D8-$C$8),\"Värde saknas\")","v":"Värde saknas"},{"$f":"IF(E8>0,(E8-$C$8),\"Värde saknas\")","v":"Värde saknas"},"Värde saknas","Värde saknas","Värde saknas","Värde saknas"]
[0,null,{"$f":"IF(D9>0,(D9-$C$9),\"Värde saknas\")","v":"Värde saknas"},{"$f":"IF(E9>0,(E9-$C$9),\"Värde saknas\")","v":"Värde saknas"},"Värde saknas","Värde saknas","Värde saknas","Värde saknas"]
[0,null,{"$f":"IF(D10>0,(D10-$C$10),\"Värde saknas\")","v":"Värde saknas"},{"$f":"IF(E10>0,(E10-$C$10),\"Värde saknas\")","v":"Värde saknas"},"Värde saknas","Värde saknas","Värde saknas","Värde saknas"]
[0,null,{"$f":"IF(D11>0,(D11-$C$11),\"Värde saknas\")","v":"Värde saknas"},{"$f":"IF(E11>0,(E11-$C$11),\"Värde saknas\")","v":"Värde saknas"},"Värde saknas","Värde saknas","Värde saknas","Värde saknas"]
[0,null,{"$f":"IF(D12>0,(D12-$C$12),\"Värde saknas\")","v":"Värde saknas"},{"$f":"IF(E12>0,(E12-$C$12),\"Värde saknas\")","v":"Värde saknas"},"Värde saknas","Värde saknas","Värde saknas","Värde saknas"]
[0,null,{"$f":"IF(D13>0,(D13-$C$13),\"Värde saknas\")","v":"Värde saknas"},{"$f":"IF(E13>0,(E13-$C$13),\"Värde saknas\")","v":"Värde saknas"},"Värde saknas","Värde saknas","Värde saknas","Värde saknas"]
[0,null,{"$f":"IF(D14>0,(D14-$C$14),\"Värde saknas\")","v":"Värde saknas"},{"$f":"IF(E14>0,(E14-$C$14),\"Värde saknas\")","v":"Värde saknas"},"Värde saknas","Värde saknas","Värde saknas","Värde saknas"]
[0,null,{"$f":"IF(D15>0,(D15-$C$15),\"Värde saknas\")","v":"Värde saknas"},{"$f":"IF(E15>0,(E15-$C$15),\"Värde saknas\")","v":"Värde saknas"},"Värde saknas","Värde saknas","Värde saknas","Värde saknas"]
[]
[]
["Tabell 3, Klimatpåverkan, kg CO2-ekv per år"]
["Vad följer vi upp","Uppföljning 1","Uppföljning 2","Uppföljning 3","Uppföljning 4","Uppföljning 5","Uppföljning 6"]
[{"$f":"A4","v":0},{"$f":"IF(D4>0,(D4-$C$4)*$P$4,\"Värde saknas\")","v":"Värde saknas"},"Värde saknas","Värde saknas","Värde saknas","Värde saknas","Värde saknas",null,"Röda rutor = utgångsvärde saknas i tabell 1 ovan, eller så har klimatpåverkan ökat"]
[0,{"$f":"IF(D5>0,(D5-$C$5)*$P$5,\"Värde saknas\")","v":"Värde saknas"},"Värde saknas","Värde saknas","Värde saknas","Värde saknas","Värde saknas",null,"Om utgångsvärde saknas, radera röda siffror för aktuell post (gäller om ni ska använda summeringen längst ner i tabellen)"]
[0,{"$f":"IF(D6>0,(D6-$C$6)*$P$6,\"Värde saknas\")","v":"Värde saknas"},"Värde saknas","Värde saknas","Värde saknas","Värde saknas","Värde saknas",null,"Låt röda siffror stå kvar om avfallet har ökat"]
[0,{"$f":"IF(D7>0,(D7-$C$7)*$P$7,\"Värde saknas\")","v":"Värde saknas"},"Värde saknas","Värde saknas","Värde saknas","Värde saknas","Värde saknas"]
[0,{"$f":"IF(D8>0,(D8-$C$8)*$P$8,\"Värde saknas\")","v":"Värde saknas"},"Värde saknas","Värde saknas","Värde saknas","Värde saknas","Värde saknas"]
[0,{"$f":"IF(D9>0,(D9-$C$9)*$P$9,\"Värde saknas\")","v":"Värde saknas"},"Värde saknas","Värde saknas","Värde saknas","Värde saknas","Värde saknas"]
[0,{"$f":"IF(D10>0,(D10-$C$10)*$P$10,\"Värde saknas\")","v":"Värde saknas"},"Värde saknas","Värde saknas","Värde saknas","Värde saknas","Värde saknas"]
[0,{"$f":"IF(D11>0,(D11-$C$11)*$P$11,\"Värde saknas\")","v":"Värde saknas"},"Värde saknas","Värde saknas","Värde saknas","Värde saknas","Värde saknas"]
[0,{"$f":"IF(D12>0,(D12-$C$12)*$P$12,\"Värde saknas\")","v":"Värde saknas"},"Värde saknas","Värde saknas","Värde saknas","Värde saknas","Värde saknas"]
[0,{"$f":"IF(D13>0,(D13-$C$13)*$P$13,\"Värde saknas\")","v":"Värde saknas"},"Värde saknas","Värde saknas","Värde saknas","Värde saknas","Värde saknas"]
[0,{"$f":"IF(D14>0,(D14-$C$14)*$P$14,\"Värde saknas\")","v":"Värde saknas"},"Värde saknas","Värde saknas","Värde saknas","Värde saknas","Värde saknas"]
[0,{"$f":"IF(D15>0,(D15-$C$15)*$P$15,\"Värde saknas\")","v":"Värde saknas"},"Värde saknas","Värde saknas","Värde saknas","Värde saknas","Värde saknas"]
["Summa",{"$f":"SUM(B46:B57)","v":0},0,0,0,0,0]
[]
[]
["Tabell 5, Procentuell minskning av avfallet (samma siffra gäller för kostnader och klimatpåverkan)"]
["Vad följer vi upp","Uppföljning 1","Uppföljning 2","Uppföljning 3","Uppföljning 4","Uppföljning 5","Uppföljning 6"]
[{"$f":"A4","v":0},{"$f":"IF(D4>0,(C30)/$C$4,\"Värde saknas\")","v":"Värde saknas"},{"$f":"IF(E4>0,(D30)/$C$4,\"Värde saknas\")","v":"Värde saknas"},"Värde saknas","Värde saknas","Värde saknas","Värde saknas"]
[0,{"$f":"IF(D5>0,(C31)/$C$5,\"Värde saknas\")","v":"Värde saknas"},{"$f":"IF(E5>0,(D31)/$C$5,\"Värde saknas\")","v":"Värde saknas"},"Värde saknas","Värde saknas","Värde saknas","Värde saknas",null,"Röda rutor = ökning av avfallet, då visas siffran med negativt värde"]
[0,{"$f":"IF(D6>0,(C32)/$C$6,\"Värde saknas\")","v":"Värde saknas"},{"$f":"IF(E6>0,(D32)/$C$6,\"Värde saknas\")","v":"Värde saknas"},"Värde saknas","Värde saknas","Värde saknas","Värde saknas",null,"#DIVISION/0! = utgångsläge saknas"]
[0,{"$f":"IF(D7>0,(C33)/$C$7,\"Värde saknas\")","v":"Värde saknas"},{"$f":"IF(E7>0,(D33)/$C$7,\"Värde saknas\")","v":"Värde saknas"},"Värde saknas","Värde saknas","Värde saknas","Värde saknas"]
[0,{"$f":"IF(D8>0,(C34)/$C$8,\"Värde saknas\")","v":"Värde saknas"},{"$f":"IF(E8>0,(D34)/$C$8,\"Värde saknas\")","v":"Värde saknas"},"Värde saknas","Värde saknas","Värde saknas","Värde saknas",null,"OBS! Procenttalen går inte att summera!"]
[0,{"$f":"IF(D9>0,(C35)/$C$9,\"Värde saknas\")","v":"Värde saknas"},{"$f":"IF(E9>0,(D35)/$C$9,\"Värde saknas\")","v":"Värde saknas"},"Värde saknas","Värde saknas","Värde saknas","Värde saknas"]
[0,{"$f":"IF(D10>0,(C36)/$C$10,\"Värde saknas\")","v":"Värde saknas"},{"$f":"IF(E10>0,(D36)/$C$10,\"Värde saknas\")","v":"Värde saknas"},"Värde saknas","Värde saknas","Värde saknas","Värde saknas"]
[0,{"$f":"IF(D11>0,(C37)/$C$11,\"Värde saknas\")","v":"Värde saknas"},{"$f":"IF(E11>0,(D37)/$C$11,\"Värde saknas\")","v":"Värde saknas"},"Värde saknas","Värde saknas","Värde saknas","Värde saknas"]
[0,{"$f":"IF(D12>0,(C38)/$C$12,\"Värde saknas\")","v":"Värde saknas"},{"$f":"IF(E12>0,(D38)/$C$12,\"Värde saknas\")","v":"Värde saknas"},"Värde saknas","Värde saknas","Värde saknas","Värde saknas"]
[0,{"$f":"IF(D13>0,(C39)/$C$13,\"Värde saknas\")","v":"Värde saknas"},{"$f":"IF(E13>0,(D39)/$C$13,\"Värde saknas\")","v":"Värde saknas"},"Värde saknas","Värde saknas","Värde saknas","Värde saknas"]
[0,{"$f":"IF(D14>0,(C40)/$C$14,\"Värde saknas\")","v":"Värde saknas"},{"$f":"IF(E14>0,(D40)/$C$14,\"Värde saknas\")","v":"Värde saknas"},"Värde saknas","Värde saknas","Värde saknas","Värde saknas"]
[0,{"$f":"IF(D15>0,(C41)/$C$15,\"Värde saknas\")","v":"Värde saknas"},{"$f":"IF(E15>0,(D41)/$C$15,\"Värde saknas\")","v":"Värde saknas"},"Värde saknas","Värde saknas","Värde saknas","Värde saknas"]

{"sheet":"Kostnader","index":3,"n_rows":35,"n_cols":9,"rows_kept":35,"merged":[[3,0,3,1]]}
["Denna flik används om ni vill se hur mycket kostnaderna för de produkter ni följer upp har förändrats."]
["Resultatet visar \"Så här mycket kostade det minus så här mycket skulle det ha kostat om vi inte hade minskat avfallet.\""]
[]
["Tabell för inmatning av kostnader"]
["Vad följer vi upp","Enhet vi mäter i","Kostnad per enhet, utgångsvärde","Kostnad per enhet, Uppföljning 1","Kostnad per enhet, Uppföljning 2","Kostnad per enhet, Uppföljning 3","Kostnad per enhet, Uppföljning 4","Kostnad per enhet, Uppföljning 5","Kostnad per enhet, Uppföljning 6"]
[{"$f":"Beräkningar!A4","v":0},{"$f":"Beräkningar!B4","v":0}]
[{"$f":"Beräkningar!A5","v":0},{"$f":"Beräkningar!B5","v":0}]
[{"$f":"Beräkningar!A6","v":0},{"$f":"Beräkningar!B6","v":0}]
[{"$f":"Beräkningar!A7","v":0},{"$f":"Beräkningar!B7","v":0}]
[{"$f":"Beräkningar!A8","v":0},{"$f":"Beräkningar!B8","v":0}]
[{"$f":"Beräkningar!A9","v":0},{"$f":"Beräkningar!B9","v":0}]
[{"$f":"Beräkningar!A10","v":0},{"$f":"Beräkningar!B10","v":0}]
[{"$f":"Beräkningar!A11","v":0},{"$f":"Beräkningar!B11","v":0}]
[{"$f":"Beräkningar!A12","v":0},{"$f":"Beräkningar!B12","v":0}]
[{"$f":"Beräkningar!A13","v":0},{"$f":"Beräkningar!B13","v":0}]
[{"$f":"Beräkningar!A14","v":0},{"$f":"Beräkningar!B14","v":0}]
[{"$f":"Beräkningar!A15","v":0},{"$f":"Beräkningar!B15","v":0}]
[]
[]
["Resultat för kostnader hämtas från nedanstående tabell"]
[]
["Tabell 2, Minskade kostnader, per år"]
["Vad följer vi upp","Enhet vi mäter i","Uppföljning 1","Uppföljning 2","Uppföljning 3","Uppföljning 4","Uppföljning 5","Uppföljning 6"]
[{"$f":"A6","v":0},{"$f":"B6","v":0},{"$f":"IF(Beräkningar!D4>0,D6*Beräkningar!D4-D6*Beräkningar!$C$4,\"Värde saknas\")","v":"Värde saknas"},{"$f":"IF(Beräkningar!E4>0,E6*Beräkningar!E4-E6*Beräkningar!$C$4,\"Värde saknas\")","v":"Värde saknas"},{"$f":"IF(Beräkningar!F4>0,F6*Beräkningar!F4-F6*Beräkningar!$C$4,\"Värde saknas\")","v":"Värde saknas"},{"$f":"IF(Beräkningar!G4>0,G6*Beräkningar!G4-G6*Beräkningar!$C$4,\"Värde saknas\")","v":"Värde saknas"},{"$f":"IF(Beräkningar!H4>0,H6*Beräkningar!H4-H6*Beräkningar!$C$4,\"Värde saknas\")","v":"Värde saknas"},{"$f":"IF(Beräkningar!I4>0,I6*Beräkningar!I4-I6*Beräkningar!$C$4,\"Värde saknas\")","v":"Värde saknas"}]
[0,0,{"$f":"IF(Beräkningar!D5>0,IF(D7>0,D7*Beräkningar!D5-D7*Beräkningar!$C$5,\"Värde saknas\"),\"Värde saknas\")","v":"Värde saknas"},{"$f":"IF(Beräkningar!E5>0,IF(E7>0,E7*Beräkningar!E5-E7*Beräkningar!$C$5,\"Värde saknas\"),\"Värde saknas\")","v":"Värde saknas"},{"$f":"IF(Beräkningar!F5>0,IF(F7>0,F7*Beräkningar!F5-F7*Beräkningar!$C$5,\"Värde saknas\"),\"Värde saknas\")","v":"Värde saknas"},{"$f":"IF(Beräkningar!G5>0,IF(G7>0,G7*Beräkningar!G5-G7*Beräkningar!$C$5,\"Värde saknas\"),\"Värde saknas\")","v":"Värde saknas"},{"$f":"IF(Beräkningar!H5>0,IF(H7>0,H7*Beräkningar!H5-H7*Beräkningar!$C$5,\"Värde saknas\"),\"Värde saknas\")","v":"Värde saknas"},{"$f":"IF(Beräkningar!I5>0,IF(I7>0,I7*Beräkningar!I5-I7*Beräkningar!$C$5,\"Värde saknas\"),\"Värde saknas\")","v":"Värde saknas"}]
[0,0,{"$f":"IF(Beräkningar!D6>0,IF(D8>0,D8*Beräkningar!D6-D8*Beräkningar!$C$6,\"Värde saknas\"),\"Värde saknas\")","v":"Värde saknas"},{"$f":"IF(Beräkningar!E6>0,IF(E8>0,E8*Beräkningar!E6-E8*Beräkningar!$C$6,\"Värde saknas\"),\"Värde saknas\")","v":"Värde saknas"},{"$f":"IF(Beräkningar!F6>0,IF(F8>0,F8*Beräkningar!F6-F8*Beräkningar!$C$6,\"Värde saknas\"),\"Värde saknas\")","v":"Värde saknas"},{"$f":"IF(Beräkningar!G6>0,IF(G8>0,G8*Beräkningar!G6-G8*Beräkningar!$C$6,\"Värde saknas\"),\"Värde saknas\")","v":"Värde saknas"},{"$f":"IF(Beräkningar!H6>0,IF(H8>0,H8*Beräkningar!H6-H8*Beräkningar!$C$6,\"Värde saknas\"),\"Värde saknas\")","v":"Värde saknas"},{"$f":"IF(Beräkningar!I6>0,IF(I8>0,I8*Beräkningar!I6-I8*Beräkningar!$C$6,\"Värde saknas\"),\"Värde saknas\")","v":"Värde saknas"}]
[0,0,{"$f":"IF(Beräkningar!D7>0,IF(D9>0,D9*Beräkningar!D7-D9*Beräkningar!$C$7,\"Värde saknas\"),\"Värde saknas\")","v":"Värde saknas"},{"$f":"IF(Beräkningar!E7>0,IF(E9>0,E9*Beräkningar!E7-E9*Beräkningar!$C$7,\"Värde saknas\"),\"Värde saknas\")","v":"Värde saknas"},{"$f":"IF(Beräkningar!F7>0,IF(F9>0,F9*Beräkningar!F7-F9*Beräkningar!$C$7,\"Värde saknas\"),\"Värde saknas\")","v":"Värde saknas"},{"$f":"IF(Beräkningar!G7>0,IF(G9>0,G9*Beräkningar!G7-G9*Beräkningar!$C$7,\"Värde saknas\"),\"Värde saknas\")","v":"Värde saknas"},{"$f":"IF(Beräkningar!H7>0,IF(H9>0,H9*Beräkningar!H7-H9*Beräkningar!$C$7,\"Värde saknas\"),\"Värde saknas\")","v":"Värde saknas"},{"$f":"IF(Beräkningar!I7>0,IF(I9>0,I9*Beräkningar!I7-I9*Beräkningar!$C$7,\"Värde saknas\"),\"Värde saknas\")","v":"Värde saknas"}]
[0,0,{"$f":"IF(Beräkningar!D8>0,IF(D10>0,D10*Beräkningar!D8-D10*Beräkningar!$C$8,\"Värde saknas\"),\"Värde saknas\")","v":"Värde saknas"},{"$f":"IF(Beräkningar!E8>0,IF(E10>0,E10*Beräkningar!E8-E10*Beräkningar!$C$8,\"Värde saknas\"),\"Värde saknas\")","v":"Värde saknas"},{"$f":"IF(Beräkningar!F8>0,IF(F10>0,F10*Beräkningar!F8-F10*Beräkningar!$C$8,\"Värde saknas\"),\"Värde saknas\")","v":"Värde saknas"},{"$f":"IF(Beräkningar!G8>0,IF(G10>0,G10*Beräkningar!G8-G10*Beräkningar!$C$8,\"Värde saknas\"),\"Värde saknas\")","v":"Värde saknas"},{"$f":"IF(Beräkningar!H8>0,IF(H10>0,H10*Beräkningar!H8-H10*Beräkningar!$C$8,\"Värde saknas\"),\"Värde saknas\")","v":"Värde saknas"},{"$f":"IF(Beräkningar!I8>0,IF(I10>0,I10*Beräkningar!I8-I10*Beräkningar!$C$8,\"Värde saknas\"),\"Värde saknas\")","v":"Värde saknas"}]
[0,0,{"$f":"IF(Beräkningar!D9>0,IF(D11>0,D11*Beräkningar!D9-D11*Beräkningar!$C$9,\"Värde saknas\"),\"Värde saknas\")","v":"Värde saknas"},{"$f":"IF(Beräkningar!E9>0,IF(E11>0,E11*Beräkningar!E9-E11*Beräkningar!$C$9,\"Värde saknas\"),\"Värde saknas\")","v":"Värde saknas"},{"$f":"IF(Beräkningar!F9>0,IF(F11>0,F11*Beräkningar!F9-F11*Beräkningar!$C$9,\"Värde saknas\"),\"Värde saknas\")","v":"Värde saknas"},{"$f":"IF(Beräkningar!G9>0,IF(G11>0,G11*Beräkningar!G9-G11*Beräkningar!$C$9,\"Värde saknas\"),\"Värde saknas\")","v":"Värde saknas"},{"$f":"IF(Beräkningar!H9>0,IF(H11>0,H11*Beräkningar!H9-H11*Beräkningar!$C$9,\"Värde saknas\"),\"Värde saknas\")","v":"Värde saknas"},{"$f":"IF(Beräkningar!I9>0,IF(I11>0,I11*Beräkningar!I9-I11*Beräkningar!$C$9,\"Värde saknas\"),\"Värde saknas\")","v":"Värde saknas"}]
[0,0,{"$f":"IF(Beräkningar!D10>0,IF(D12>0,D12*Beräkningar!D10-D12*Beräkningar!$C$10,\"Värde saknas\"),\"Värde saknas\")","v":"Värde saknas"},{"$f":"IF(Beräkningar!E10>0,IF(E12>0,E12*Beräkningar!E10-E12*Beräkningar!$C$10,\"Värde saknas\"),\"Värde saknas\")","v":"Värde saknas"},{"$f":"IF(Beräkningar!F10>0,IF(F12>0,F12*Beräkningar!F10-F12*Beräkningar!$C$10,\"Värde saknas\"),\"Värde saknas\")","v":"Värde saknas"},{"$f":"IF(Beräkningar!G10>0,IF(G12>0,G12*Beräkningar!G10-G12*Beräkningar!$C$10,\"Värde saknas\"),\"Värde saknas\")","v":"Värde saknas"},{"$f":"IF(Beräkningar!H10>0,IF(H12>0,H12*Beräkningar!H10-H12*Beräkningar!$C$10,\"Värde saknas\"),\"Värde saknas\")","v":"Värde saknas"},{"$f":"IF(Beräkningar!I10>0,IF(I12>0,I12*Beräkningar!I10-I12*Beräkningar!$C$10,\"Värde saknas\"),\"Värde saknas\")","v":"Värde saknas"}]
[0,0,{"$f":"IF(Beräkningar!D11>0,IF(D13>0,D13*Beräkningar!D11-D13*Beräkningar!$C$11,\"Värde saknas\"),\"Värde saknas\")","v":"Värde saknas"},{"$f":"IF(Beräkningar!E11>0,IF(E13>0,E13*Beräkningar!E11-E13*Beräkningar!$C$11,\"Värde saknas\"),\"Värde saknas\")","v":"Värde saknas"},{"$f":"IF(Beräkningar!F11>0,IF(F13>0,F13*Beräkningar!F11-F13*Beräkningar!$C$11,\"Värde saknas\"),\"Värde saknas\")","v":"Värde saknas"},{"$f":"IF(Beräkningar!G11>0,IF(G13>0,G13*Beräkningar!G11-G13*Beräkningar!$C$11,\"Värde saknas\"),\"Värde saknas\")","v":"Värde saknas"},{"$f":"IF(Beräkningar!H11>0,IF(H13>0,H13*Beräkningar!H11-H13*Beräkningar!$C$11,\"Värde saknas\"),\"Värde saknas\")","v":"Värde saknas"},{"$f":"IF(Beräkningar!I11>0,IF(I13>0,I13*Beräkningar!I11-I13*Beräkningar!$C$11,\"Värde saknas\"),\"Värde saknas\")","v":"Värde saknas"}]
[0,0,{"$f":"IF(Beräkningar!D12>0,IF(D14>0,D14*Beräkningar!D12-D14*Beräkningar!$C$12,\"Värde saknas\"),\"Värde saknas\")","v":"Värde saknas"},{"$f":"IF(Beräkningar!E12>0,IF(E14>0,E14*Beräkningar!E12-E14*Beräkningar!$C$12,\"Värde saknas\"),\"Värde saknas\")","v":"Värde saknas"},{"$f":"IF(Beräkningar!F12>0,IF(F14>0,F14*Beräkningar!F12-F14*Beräkningar!$C$12,\"Värde saknas\"),\"Värde saknas\")","v":"Värde saknas"},{"$f":"IF(Beräkningar!G12>0,IF(G14>0,G14*Beräkningar!G12-G14*Beräkningar!$C$12,\"Värde saknas\"),\"Värde saknas\")","v":"Värde saknas"},{"$f":"IF(Beräkningar!H12>0,IF(H14>0,H14*Beräkningar!H12-H14*Beräkningar!$C$12,\"Värde saknas\"),\"Värde saknas\")","v":"Värde saknas"},{"$f":"IF(Beräkningar!I12>0,IF(I14>0,I14*Beräkningar!I12-I14*Beräkningar!$C$12,\"Värde saknas\"),\"Värde saknas\")","v":"Värde saknas"}]
[0,0,{"$f":"IF(Beräkningar!D13>0,IF(D15>0,D15*Beräkningar!D13-D15*Beräkningar!$C$13,\"Värde saknas\"),\"Värde saknas\")","v":"Värde saknas"},{"$f":"IF(Beräkningar!E13>0,IF(E15>0,E15*Beräkningar!E13-E15*Beräkningar!$C$13,\"Värde saknas\"),\"Värde saknas\")","v":"Värde saknas"},{"$f":"IF(Beräkningar!F13>0,IF(F15>0,F15*Beräkningar!F13-F15*Beräkningar!$C$13,\"Värde saknas\"),\"Värde saknas\")","v":"Värde saknas"},{"$f":"IF(Beräkningar!G13>0,IF(G15>0,G15*Beräkningar!G13-G15*Beräkningar!$C$13,\"Värde saknas\"),\"Värde saknas\")","v":"Värde saknas"},{"$f":"IF(Beräkningar!H13>0,IF(H15>0,H15*Beräkningar!H13-H15*Beräkningar!$C$13,\"Värde saknas\"),\"Värde saknas\")","v":"Värde saknas"},{"$f":"IF(Beräkningar!I13>0,IF(I15>0,I15*Beräkningar!I13-I15*Beräkningar!$C$13,\"Värde saknas\"),\"Värde saknas\")","v":"Värde saknas"}]
[0,0,{"$f":"IF(Beräkningar!D14>0,IF(D16>0,D16*Beräkningar!D14-D16*Beräkningar!$C$14,\"Värde saknas\"),\"Värde saknas\")","v":"Värde saknas"},{"$f":"IF(Beräkningar!E14>0,IF(E16>0,E16*Beräkningar!E14-E16*Beräkningar!$C$14,\"Värde saknas\"),\"Värde saknas\")","v":"Värde saknas"},{"$f":"IF(Beräkningar!F14>0,IF(F16>0,F16*Beräkningar!F14-F16*Beräkningar!$C$14,\"Värde saknas\"),\"Värde saknas\")","v":"Värde saknas"},{"$f":"IF(Beräkningar!G14>0,IF(G16>0,G16*Beräkningar!G14-G16*Beräkningar!$C$14,\"Värde saknas\"),\"Värde saknas\")","v":"Värde saknas"},{"$f":"IF(Beräkningar!H14>0,IF(H16>0,H16*Beräkningar!H14-H16*Beräkningar!$C$14,\"Värde saknas\"),\"Värde saknas\")","v":"Värde saknas"},{"$f":"IF(Beräkningar!I14>0,IF(I16>0,I16*Beräkningar!I14-I16*Beräkningar!$C$14,\"Värde saknas\"),\"Värde saknas\")","v":"Värde saknas"}]
[0,0,{"$f":"IF(Beräkningar!D15>0,IF(D17>0,D17*Beräkningar!D15-D17*Beräkningar!$C$15,\"Värde saknas\"),\"Värde saknas\")","v":"Värde saknas"},{"$f":"IF(Beräkningar!E15>0,IF(E17>0,E17*Beräkningar!E15-E17*Beräkningar!$C$15,\"Värde saknas\"),\"Värde saknas\")","v":"Värde saknas"},{"$f":"IF(Beräkningar!F15>0,IF(F17>0,F17*Beräkningar!F15-F17*Beräkningar!$C$15,\"Värde saknas\"),\"Värde saknas\")","v":"Värde saknas"},{"$f":"IF(Beräkningar!G15>0,IF(G17>0,G17*Beräkningar!G15-G17*Beräkningar!$C$15,\"Värde saknas\"),\"Värde saknas\")","v":"Värde saknas"},{"$f":"IF(Beräkningar!H15>0,IF(H17>0,H17*Beräkningar!H15-H17*Beräkningar!$C$15,\"Värde saknas\"),\"Värde saknas\")","v":"Värde saknas"},{"$f":"IF(Beräkningar!I15>0,IF(I17>0,I17*Beräkningar!I15-I17*Beräkningar!$C$15,\"Värde saknas\"),\"Värde saknas\")","v":"Värde saknas"}]

{"sheet":"Klimatpåverkan","index":4,"n_rows":9,"n_cols":7,"rows_kept":9}
["Minskad klimatpåverkan motsvarar","Uppföljning 1","Uppföljning 2","Uppföljning 3","Uppföljning 4","Uppföljning 5","Uppföljning 6"]
["Antal veckors matkonsumtion för en person*",{"$f":"SUM(Beräkningar!B58/11)","v":0},{"$f":"SUM(Beräkningar!C58/11)","v":0},{"$f":"SUM(Beräkningar!D58/11)","v":0},{"$f":"SUM(Beräkningar!E58/11)","v":0},{"$f":"SUM(Beräkningar!F58/11)","v":0},{"$f":"SUM(Beräkningar!G58/11)","v":0}]
["Antal producerade mobiltelefoner*",{"$f":"SUM(Beräkningar!B58/72)","v":0},{"$f":"SUM(Beräkningar!C58/72)","v":0},{"$f":"SUM(Beräkningar!D58/72)","v":0},{"$f":"SUM(Beräkningar!E58/72)","v":0},{"$f":"SUM(Beräkningar!F58/72)","v":0},{"$f":"SUM(Beräkningar!G58/72)","v":0}]
["Antal kg producerat nötkött*",{"$f":"SUM(Beräkningar!B58/31)","v":0},{"$f":"SUM(Beräkningar!C58/31)","v":0},{"$f":"SUM(Beräkningar!D58/31)","v":0},{"$f":"SUM(Beräkningar!E58/31)","v":0},{"$f":"SUM(Beräkningar!F58/31)","v":0},{"$f":"SUM(Beräkningar!G58/31)","v":0}]
["Antal km genomsnittlig nyproducerad bensinbil**",{"$f":"SUM(Beräkningar!B58/0.137)","v":0},{"$f":"SUM(Beräkningar!C58/0.137)","v":0},{"$f":"SUM(Beräkningar!D58/0.137)","v":0},{"$f":"SUM(Beräkningar!E58/0.137)","v":0},{"$f":"SUM(Beräkningar!F58/0.137)","v":0},{"$f":"SUM(Beräkningar!G58/0.137)","v":0}]
[]
["*Omräkningsfaktor från Avfall Sverige, se fliken Omräkningsfaktorer"]
["**Omräkningsfaktor från Transportstyrelsen:","Statistik över koldioxidutsläpp 2022 - Transportstyrelsen"]
[null,"Bensindrivna bilar","137,43 gram/km"]

{"sheet":"Omräkningsfaktorer","index":5,"n_rows":54,"n_cols":8,"rows_kept":54}
["Att ta fram omräkningsfaktor"]
["I första hand EPD:er om det handlar om specifika produkter och om sådan finns. Addera siffran för Klimatpåverkan avfallshantering i Avfall Sveriges verktyg för beräkning av klimatpåverkan"]
["I andra hand Avfall Sveriges verktyg för beräkning av klimatpåverkan, se nedan."]
[]
[]
["Källa: Avfall Sveriges verktyg för beräkning av klimatpåverkan från olika avfallsslag 2023"]
["Avfall","Avfallshantering","Avfallsmängd [kg]","Klimatpåverkan produktion \n[kg CO2e]","Klimatpåverkan avfallshantering inkl nytta [kg CO2e]","Klimatpåverkan vid förebyggande av avfall [kg CO2e]","Kommentar","."]
["Restavfall","Energiåtervinning",1,{"v":2.5566139718073466,"d":"2.6"},{"v":0.4421911111111111,"d":"0.44"},{"v":-2.998805082918458,"d":"-3.0"},"Fördelningen av olika avfall ses under tabellen"]
["Matavfall","Rötning till biogas",1,{"v":2.42121,"d":"2.4"},{"v":-0.203058875,"d":"-0.20"},{"v":-2.218151125,"d":"-2.2"},"Fördelningen av olika avfall ses under tabellen"]
["Matavfall","Kompostering",1,{"v":2.42121,"d":"2.4"},{"v":-0.13854,"d":"-0.14"},{"v":-2.28267,"d":"-2.3"},"Fördelningen av olika avfall ses under tabellen"]
["Matavfall","Hemkompostering",1,{"v":2.42121,"d":"2.4"},{"v":-0.17024999999999998,"d":"-0.17"},{"v":-2.25096,"d":"-2.3"},"Fördelningen av olika avfall ses under tabellen"]
["Pappersförpackningar","Materialåtervinning",1,{"v":0.8494000000000002,"d":"0.8"},{"v":-0.11654415277777777,"d":"-0.12"},{"v":-0.7328558472222224,"d":"-0.73"},"Återvinningsgrad från 2021, ej återvunnet förbränns"]
["Plastförpackningar","Materialåtervinning",1,{"v":2.7253750000000005,"d":"2.7"},{"v":0.9595754166666666,"d":"0.96"},{"v":-3.684950416666667,"d":"-3.7"},"Återvinningsgrad från 2021, ej återvunnet förbränns"]
["Metallförpackningar","Materialåtervinning",1,{"v":5.6622,"d":"5.7"},{"v":-3.3188524,"d":"-3.3"},{"v":-2.3433476000000004,"d":"-2.3"},"Återvinningsgrad från 2021, 80% stål (ca 20% återvunnet), 20% aluminium (ca 30% återvunnet)"]
["Glasförpackningar","Materialåtervinning",1,{"v":1.2787516666666665,"d":"1.3"},{"v":0.03040782,"d":"0.030"},{"v":-1.3091594866666665,"d":"-1.3"},"Återvinningsgrad från 2021"]
["Returpapper","Materialåtervinning",1,{"v":1.31655,"d":"1.3"},{"v":-0.11654415277777777,"d":"-0.12"},{"v":-1.2000058472222224,"d":"-1.2"},"Återvinningsgrad från 2021, ej återvunnet förbränns"]
["Elavfall","Materialåtervinning",1,{"v":23.72604994166836,"d":"23.7"},{"v":-1.975069216666667,"d":"-2.0"},{"v":-21.750980725001693,"d":"-22"},"12% IT-utrustning, full fördelning ses under tabellen, mycket osäker!"]
["Kontorspapper","Materialåtervinning",1,{"v":1.31655,"d":"1.3"},{"v":-0.14094415277777778,"d":"-0.14"},{"v":-1.1756058472222224,"d":"-1.18"},"Antaget återvinningsgrad som returpapper"]
["Textil","Återanvändning/Återvinning",1,{"v":18.785419285714287,"d":"18.8"},{"v":-6.857348924603175,"d":"-6.9"},{"v":-11.92807036111111,"d":"-12"},"50% återanvändning (som ersätter 60% nyproduktion), 40% lågvärdig återvinning, 10% förbränning"]
["Gips","Materialåtervinning",1,{"v":0.370035994729126,"d":"0.4"},{"v":0.0369026,"d":"0.037"},{"v":-0.406938594729126,"d":"-0.41"}]
["Plast (kommunplast, ej förpackningar)","Materialåtervinning",1,{"v":2.7344893137254904,"d":"2.7"},{"v":0.9351754166666666,"d":"0.94"},{"v":-3.669664730392157,"d":"-3.7"},"Antaget samma återvinningsgrad som plastförpackningar"]
["Wellpapp","Materialåtervinning",1,{"v":0.49237,"d":"0.5"},{"v":-0.14094415277777778,"d":"-0.14"},{"v":-0.3514258472222222,"d":"-0.35"}]
["Planglas","Materialåtervinning",1,{"v":1.254953973509934,"d":"1.3"},{"v":0.10922728141414141,"d":"0.11"},{"v":-1.3641812549240755,"d":"-1.4"},"Återvinning av glaset, energiåtervinning av trä och PVC"]
["Däck","Materialåtervinning",1,{"v":3.0446999999999997,"d":"3.0"},{"v":0.4302160408333333,"d":"0.43"},{"v":-3.474916040833333,"d":"-3.5"},"40% återvinning till granulat för konstgräs eller liknande"]
["Metallskrot","Materialåtervinning",1,{"v":3.8962,"d":"3.9"},{"v":-1.936213,"d":"-1.9"},{"v":-1.959987,"d":"-2.0"},"Antas som stål där ca 20% är återvunnet i produktion och återvinningsgraden är 100%"]
["Trädgårdsavfall","Kompostering",1,{"v":0,"d":"0.0"},{"v":-0.051364999999999994,"d":"-0.051"},{"v":0.051364999999999994,"d":"0.051"},"Ingen påverkan från produktion"]
["Trä, ej impregnerat","Energiåtervinning",1,{"v":0.09524120654396728,"d":"0.1"},{"v":-0.019551388888888882,"d":"-0.020"},{"v":-0.0756898176550784,"d":"-0.076"},"Svenskproducerat trä, förbränning av spånskiva"]
["Brännbart grovavfall","Energiåtervinning",1,{"v":1.637498364397702,"d":"1.6"},{"v":0.43096241506314487,"d":"0.43"},{"v":-2.068460779460847,"d":"-2.1"},"antaget 20% vardera plast, trä, trädgårdsavfall och papper. 10% övrigt brännbart, 10% obrännbart"]
["Konstruktionsmaterial","Materialåtervinning",1,{"v":0.104135,"d":"0.1"},{"v":2.5400000000000006E-3,"d":"0.0025"},{"v":-0.106675,"d":"-0.11"}]
["Ej brännbart/inert avfall","Deponi",1,{"v":0.104135,"d":"0.1"},{"v":0.02231,"d":"0.022"},{"v":-0.126445,"d":"-0.13"}]
["Småkemikalier","Energiåtervinning",1,{"v":0.5002,"d":"0.5"},{"v":2.332663055555556,"d":"2.3"},{"v":-2.832863055555556,"d":"-2.8"},"lacknafta och förbränning av farligt avfall"]
["Vattenbaserad färg","Energiåtervinning",1,{"v":2.39505,"d":"2.4"},{"v":0.4177911111111111,"d":"0.42"},{"v":-2.812841111111111,"d":"-2.8"},"Snitt av tre färgproducenter, förbränning av vanligt avfall (pga låg andel fossilt innehåll)"]
["Lösningsmedelsbaserad färg","Energiåtervinning",1,{"v":2.9590716666666665,"d":"3.0"},{"v":2.3626630555555552,"d":"2.4"},{"v":-5.321734722222222,"d":"-5.3"},"Snitt av tre färgproducenter, förbränning av farligt avfall"]
["Oljehaltigt avfall","Energiåtervinning",1,{"v":1.2797049999999999,"d":"1.3"},{"v":2.332663055555556,"d":"2.3"},{"v":-3.6123680555555557,"d":"-3.6"},"Smörjolja, förbränning av farligt avfall"]
["Tryckimpregnerat trä","Energiåtervinning",1,{"v":0.4473410088616223,"d":"0.4"},{"v":-0.019551388888888882,"d":"-0.020"},{"v":-0.42778961997273346,"d":"-0.43"},"förbränning av rent trä"]
["Asbest","Deponi",1,{"v":0.06355,"d":"0.1"},{"v":0.02231,"d":"0.022"},{"v":-0.08585999999999999,"d":"-0.086"}]
[]
[]
["Medelstora jämförelsevärden"]
["En genomsnittlig svensks konsumtion per år",9,"ton CO2","Klimatet och konsumtionen (naturvardsverket.se)"]
["Hållbar nivå all konsumtion en svensk inkl allt konsumtion (1,5graders uppvärmning) per år",1,"ton CO2","Klimatet och konsumtionen (naturvardsverket.se)"]
["En ny genomsnittlig bil med förbränningsmotor som kör 1500 mil per år",{"$f":"15000*0.000095","v":{"v":1.425,"d":"1.4"}},"ton CO2","Egen beräkning 95g per km krav 2021, utan uppströmsutsläpp https://www.trafikverket.se/contentassets/d4c1beff0a9a4e91b0246ef155188c3d/emissionsfaktorer-2017-2020-och-2030.pdf"]
["En genomsnittlig dieselbil som körs 1500 mil per år",{"$f":"150000*0.000012","v":1.8},"ton CO2","Egen beräkning 120g per km genomsnitt 2017, utan uppströmsutsläpp https://www.trafikverket.se/contentassets/d4c1beff0a9a4e91b0246ef155188c3d/emissionsfaktorer-2017-2020-och-2030.pdf"]
[]
["Små jämförelsevärden"]
["Producera en mobiltelefon",72,"kg CO2-ekvivalenter","https://www.apple.com/environment/pdf/products/iphone/iPhone_11_PER_sept2019.pdf"]
["Producera en laptop",161,"kg CO2-ekvivalenter","https://www.apple.com/environment/pdf/products/notebooks/13-inch_MacBookAir_PER_Nov2020.pdf"]
["Producera 1 kg nötkött",31,"kg CO2-ekvivalenter","Beef average, market: SE. https://apps.carboncloud.com/climatehub/search?q"]
["Producera 1 par jeans",10,"kg CO2-ekvivalenter","Dina kläder slukar jordens resurser | Hallå konsument – Konsumentverket (hallakonsument.se)"]
["En genomsnittlig nordisk kWh elektricitet",0.09,"kg CO2-ekvivalenter","Genomsnitt 2016-2018 från http://naturvardsverket.diva-portal.org/smash/get/diva2:1540012/FULLTEXT01.pdf"]
["En växtbaserad hamburgare",0.5,"kg CO2-ekvivalenter","BBQ Plant Beef - vegansk burgare | MAX"]
["Andra jämförelsevärden för matprodukter (CarbonCloud)","-","kg CO2-ekvivalenter","https://apps.carboncloud.com/climatehub/search?q"]
["En veckas matkonsumtion enligt One Planet Plate",11,"kg CO2-ekvivalenter","https://www.wwf.se/mat-och-jordbruk/one-planet-plate/#klimat-och-biologisk-mangfald"]
["Flygresa per personkilometer inkl höghöjdseffekt",0.1703,"kg CO2-ekvivalenter","DEFRA. Excelfil: Conversion factors 2021 full set advanced users. https://www.gov.uk/government/publications/greenhouse-gas-reporting-conversion-factors-2021. Flights - Short-haul, to/from UK - Average passenger.km"]